[Event "Titled Tuesday Blitz February 28 Late 2023"]
[White "Sokac, Marko"]
[Black "Melikyan, Gnel"]
[WhiteFideId "14531356"]
[BlackFideId "54109990"]
[WhiteElo "2355"]
[BlackElo "2138"]
[Result "1-0"]
[Round "08"]
[TimeControl "180+2"]
[Date "2023.02.28"]
[WhiteClock "0:02:12"]
[BlackClock "0:01:24"]

1. e4 {[%clk 0:03:00]}  g6 {[%clk 0:02:56]} 2. h4 {[%clk 0:03:00]}  h5 {[%clk 0:02:52]} 3. d4 {[%clk 0:02:59]}  d5 {[%clk 0:02:51]} 4. exd5 {[%clk 0:02:58]}  Qxd5 {[%clk 0:02:51]} 5. Nc3 {[%clk 0:02:58]}  Qd6 {[%clk 0:02:51]} 6. Bc4 {[%clk 0:02:55]}  Nc6 {[%clk 0:02:49]} 7. Nge2 {[%clk 0:02:49]}  Bg7 {[%clk 0:02:49]} 8. Bf4 {[%clk 0:02:44]}  Qd8 {[%clk 0:02:48]} 9. Nb5 {[%clk 0:02:41]}  e5 {[%clk 0:02:46]} 10. dxe5 {[%clk 0:02:38]}  Nxe5 {[%clk 0:02:38]} 11. Bxe5 {[%clk 0:02:33]}  Qxd1+ {[%clk 0:01:53]} 12. Rxd1 {[%clk 0:02:34]}  Bxe5 {[%clk 0:01:53]} 13. f4 {[%clk 0:02:31]}  a6 {[%clk 0:01:53]} 14. fxe5 {[%clk 0:02:28]}  axb5 {[%clk 0:01:53]} 15. Bxb5+ {[%clk 0:02:28]}  c6 {[%clk 0:01:54]} 16. Bc4 {[%clk 0:02:27]}  b5 {[%clk 0:01:41]} 17. Bb3 {[%clk 0:02:25]}  c5 {[%clk 0:01:40]} 18. Bd5 {[%clk 0:02:19]}  Ra7 {[%clk 0:01:40]} 19. Nc3 {[%clk 0:02:17]}  Bd7 {[%clk 0:01:36]} 20. O-O {[%clk 0:02:17]}  Rh7 {[%clk 0:01:34]} 21. Ne4 {[%clk 0:02:15]}  Ke7 {[%clk 0:01:25]} 22. Ng5 {[%clk 0:02:12]}  Nh6 {[%clk 0:01:24]} 23. Nxh7 {[%clk 0:02:12]} 1-0


[Site "https://www.chess.com"]

[Event "Titled Tuesday Blitz February 28 Late 2023"]
[White "Krishnan, Varun"]
[Black "Rottenwohrer Suarez, Juan"]
[WhiteFideId "5054508"]
[BlackFideId "32068182"]
[WhiteElo "2533"]
[BlackElo "2174"]
[Result "1-0"]
[Round "08"]
[TimeControl "180+2"]
[Date "2023.02.28"]
[WhiteClock "0:02:17"]
[BlackClock "0:01:24"]

1. e4 {[%clk 0:03:00]}  c5 {[%clk 0:03:00]} 2. Nf3 {[%clk 0:02:59]}  g6 {[%clk 0:03:00]} 3. c3 {[%clk 0:02:58]}  d5 {[%clk 0:03:00]} 4. exd5 {[%clk 0:02:57]}  Qxd5 {[%clk 0:03:01]} 5. d4 {[%clk 0:02:58]}  Bg7 {[%clk 0:03:02]} 6. Be3 {[%clk 0:02:57]}  cxd4 {[%clk 0:03:01]} 7. cxd4 {[%clk 0:02:56]}  Nh6 {[%clk 0:03:02]} 8. Nc3 {[%clk 0:02:57]}  Qa5 {[%clk 0:03:02]} 9. Bc4 {[%clk 0:02:52]}  O-O {[%clk 0:03:01]} 10. O-O {[%clk 0:02:51]}  Nf5 {[%clk 0:03:02]} 11. Rc1 {[%clk 0:02:44]}  Nxe3 {[%clk 0:03:00]} 12. fxe3 {[%clk 0:02:43]}  Nc6 {[%clk 0:02:58]} 13. Bb3 {[%clk 0:02:41]}  Bd7 {[%clk 0:02:42]} 14. Ne4 {[%clk 0:02:38]}  Rad8 {[%clk 0:02:33]} 15. Nfg5 {[%clk 0:02:35]}  e6 {[%clk 0:02:18]} 16. Qf3 {[%clk 0:02:32]}  Be8 {[%clk 0:01:38]} 17. Qh3 {[%clk 0:02:16]}  h6 {[%clk 0:01:27]} 18. Nxe6 {[%clk 0:02:16]}  fxe6 {[%clk 0:01:24]} 19. Qxe6+ {[%clk 0:02:17]} 1-0


[Site "https://www.chess.com"]

[Event "Titled Tuesday Blitz February 28 Late 2023"]
[White "Ansh M Shah"]
[Black "Roberson, Peter T"]
[WhiteFideId "25033379"]
[BlackFideId "412384"]
[WhiteElo "2084"]
[BlackElo "2346"]
[Result "1/2-1/2"]
[Round "08"]
[TimeControl "180+2"]
[Date "2023.02.28"]
[WhiteClock "0:00:16"]
[BlackClock "0:01:02"]

1. d4 {[%clk 0:03:00]}  e6 {[%clk 0:02:59]} 2. c4 {[%clk 0:03:00]}  b6 {[%clk 0:02:59]} 3. g3 {[%clk 0:03:01]}  Bb7 {[%clk 0:03:00]} 4. Nf3 {[%clk 0:03:01]}  Bb4+ {[%clk 0:02:58]} 5. Bd2 {[%clk 0:02:59]}  Bxf3 {[%clk 0:02:59]} 6. exf3 {[%clk 0:02:58]}  Bxd2+ {[%clk 0:02:59]} 7. Qxd2 {[%clk 0:02:58]}  Nf6 {[%clk 0:03:00]} 8. Bg2 {[%clk 0:02:59]}  d5 {[%clk 0:03:01]} 9. f4 {[%clk 0:02:59]}  O-O {[%clk 0:03:00]} 10. Nc3 {[%clk 0:02:59]}  Nc6 {[%clk 0:02:56]} 11. cxd5 {[%clk 0:02:57]}  Nxd5 {[%clk 0:02:54]} 12. Nxd5 {[%clk 0:02:57]}  exd5 {[%clk 0:02:55]} 13. O-O {[%clk 0:02:57]}  Ne7 {[%clk 0:02:55]} 14. Rac1 {[%clk 0:02:57]}  Rc8 {[%clk 0:02:54]} 15. b4 {[%clk 0:02:56]}  Nf5 {[%clk 0:02:53]} 16. Rc6 {[%clk 0:02:54]}  Ne7 {[%clk 0:02:41]} 17. Rc3 {[%clk 0:02:51]}  Qd6 {[%clk 0:02:38]} 18. a3 {[%clk 0:02:49]}  c5 {[%clk 0:02:30]} 19. dxc5 {[%clk 0:02:49]}  bxc5 {[%clk 0:02:31]} 20. bxc5 {[%clk 0:02:48]}  Rxc5 {[%clk 0:02:32]} 21. Rd1 {[%clk 0:02:46]}  Rfc8 {[%clk 0:02:22]} 22. Rxc5 {[%clk 0:02:44]}  Rxc5 {[%clk 0:02:23]} 23. Qb4 {[%clk 0:02:38]}  g6 {[%clk 0:02:18]} 24. Bf3 {[%clk 0:02:33]}  Qb6 {[%clk 0:02:11]} 25. Qxb6 {[%clk 0:02:07]}  axb6 {[%clk 0:02:10]} 26. Rb1 {[%clk 0:02:08]}  Ra5 {[%clk 0:02:07]} 27. Rxb6 {[%clk 0:02:02]}  Rxa3 {[%clk 0:02:07]} 28. Kg2 {[%clk 0:02:00]}  Ra2 {[%clk 0:02:03]} 29. Rd6 {[%clk 0:01:17]}  Nf5 {[%clk 0:01:51]} 30. Bxd5 {[%clk 0:00:50]}  Rxf2+ {[%clk 0:01:36]} 31. Kxf2 {[%clk 0:00:51]}  Nxd6 {[%clk 0:01:36]} 32. Ke3 {[%clk 0:00:49]}  Kg7 {[%clk 0:01:36]} 33. Kd4 {[%clk 0:00:46]}  Kf6 {[%clk 0:01:36]} 34. Be4 {[%clk 0:00:37]}  h6 {[%clk 0:01:34]} 35. h3 {[%clk 0:00:36]}  g5 {[%clk 0:01:33]} 36. fxg5+ {[%clk 0:00:32]}  hxg5 {[%clk 0:01:34]} 37. h4 {[%clk 0:00:32]}  gxh4 {[%clk 0:01:24]} 38. gxh4 {[%clk 0:00:33]}  Nb5+ {[%clk 0:01:24]} 39. Ke3 {[%clk 0:00:30]}  Ke5 {[%clk 0:01:23]} 40. Bd3 {[%clk 0:00:27]}  Nd4 {[%clk 0:01:21]} 41. h5 {[%clk 0:00:20]}  Ne6 {[%clk 0:01:20]} 42. h6 {[%clk 0:00:19]}  Kf6 {[%clk 0:01:13]} 43. Bc4 {[%clk 0:00:13]}  Ng5 {[%clk 0:01:00]} 44. Kf4 {[%clk 0:00:12]}  Kg6 {[%clk 0:00:57]} 45. Bxf7+ {[%clk 0:00:05]}  Nxf7 {[%clk 0:00:58]} 46. h7 {[%clk 0:00:05]}  Nh8 {[%clk 0:00:59]} 47. Kg4 {[%clk 0:00:05]}  Kf6 {[%clk 0:00:58]} 48. Kf3 {[%clk 0:00:06]}  Kf5 {[%clk 0:00:58]} 49. Kf2 {[%clk 0:00:07]}  Kf4 {[%clk 0:00:59]} 50. Ke2 {[%clk 0:00:08]}  Ke4 {[%clk 0:00:59]} 51. Kd2 {[%clk 0:00:08]}  Kd4 {[%clk 0:01:00]} 52. Kc2 {[%clk 0:00:09]}  Kc4 {[%clk 0:01:01]} 53. Kb2 {[%clk 0:00:10]}  Kb4 {[%clk 0:01:01]} 54. Kc2 {[%clk 0:00:10]}  Kc5 {[%clk 0:01:02]} 55. Kd2 {[%clk 0:00:11]}  Kd5 {[%clk 0:01:03]} 56. Ke3 {[%clk 0:00:12]}  Ke5 {[%clk 0:01:03]} 57. Kf3 {[%clk 0:00:12]}  Nf7 {[%clk 0:01:03]} 58. Kg4 {[%clk 0:00:13]}  Kf6 {[%clk 0:01:03]} 59. Kh5 {[%clk 0:00:14]}  Kg7 {[%clk 0:01:04]} 60. Kg4 {[%clk 0:00:14]}  Nh6+ {[%clk 0:01:04]} 61. Kg5 {[%clk 0:00:14]}  Nf7+ {[%clk 0:01:04]} 62. Kf5 {[%clk 0:00:15]}  Nh8 {[%clk 0:01:04]} 63. Ke6 {[%clk 0:00:15]}  Kg6 {[%clk 0:01:04]} 64. Ke7 {[%clk 0:00:15]}  Kg7 {[%clk 0:01:03]} 65. Ke8 {[%clk 0:00:16]}  Ng6 {[%clk 0:01:04]} 66. Kd7 {[%clk 0:00:15]}  Kf7 {[%clk 0:01:04]} 67. Kd6 {[%clk 0:00:15]}  Kf6 {[%clk 0:01:04]} 68. Kd7 {[%clk 0:00:15]}  Nf8+ {[%clk 0:01:03]} 69. Ke8 {[%clk 0:00:15]}  Kg7 {[%clk 0:01:03]} 70. Ke7 {[%clk 0:00:15]}  Ng6+ {[%clk 0:01:03]} 71. Ke8 {[%clk 0:00:15]}  Nh8 {[%clk 0:01:04]} 72. Ke7 {[%clk 0:00:16]}  Kg6 {[%clk 0:01:04]} 73. Kf8 {[%clk 0:00:16]}  Kxh7 {[%clk 0:01:02]} 1/2-1/2


[Site "https://www.chess.com"]

[Event "Titled Tuesday Blitz February 28 Late 2023"]
[White "Eckert, Doug"]
[Black "Nilsen, Tobias Lang"]
[WhiteFideId "2001993"]
[BlackFideId "1521624"]
[WhiteElo "2202"]
[BlackElo "2195"]
[Result "0-1"]
[Round "08"]
[TimeControl "180+2"]
[Date "2023.02.28"]
[WhiteClock "0:00:21"]
[BlackClock "0:00:14"]

1. d4 {[%clk 0:03:00]}  d5 {[%clk 0:03:00]} 2. c4 {[%clk 0:03:00]}  e6 {[%clk 0:03:00]} 3. Nc3 {[%clk 0:03:00]}  c6 {[%clk 0:03:01]} 4. e3 {[%clk 0:02:58]}  f5 {[%clk 0:03:01]} 5. Nf3 {[%clk 0:02:57]}  Nf6 {[%clk 0:03:02]} 6. Bd3 {[%clk 0:02:55]}  Bd6 {[%clk 0:03:02]} 7. b3 {[%clk 0:02:54]}  O-O {[%clk 0:03:02]} 8. O-O {[%clk 0:02:54]}  Ne4 {[%clk 0:03:02]} 9. Bb2 {[%clk 0:02:52]}  Nd7 {[%clk 0:03:01]} 10. Qc1 {[%clk 0:02:52]}  Qe7 {[%clk 0:02:59]} 11. Ne2 {[%clk 0:02:51]}  g5 {[%clk 0:02:58]} 12. a4 {[%clk 0:02:45]}  Rf6 {[%clk 0:02:53]} 13. Ba3 {[%clk 0:02:43]}  Rh6 {[%clk 0:02:53]} 14. Bxd6 {[%clk 0:02:34]}  Qxd6 {[%clk 0:02:52]} 15. g3 {[%clk 0:02:33]}  Ndf6 {[%clk 0:02:41]} 16. Ne5 {[%clk 0:02:26]}  Nd7 {[%clk 0:02:04]} 17. Qa3 {[%clk 0:01:45]}  Qxa3 {[%clk 0:01:59]} 18. Rxa3 {[%clk 0:01:45]}  Nxe5 {[%clk 0:01:55]} 19. dxe5 {[%clk 0:01:30]}  Nd2 {[%clk 0:01:54]} 20. Rd1 {[%clk 0:01:26]}  Nf3+ {[%clk 0:01:53]} 21. Kg2 {[%clk 0:01:25]}  Nxe5 {[%clk 0:01:20]} 22. cxd5 {[%clk 0:01:09]}  cxd5 {[%clk 0:01:17]} 23. Nd4 {[%clk 0:01:05]}  Bd7 {[%clk 0:01:14]} 24. Bb5 {[%clk 0:00:59]}  Nc6 {[%clk 0:01:08]} 25. Rc1 {[%clk 0:00:56]}  e5 {[%clk 0:01:06]} 26. Bxc6 {[%clk 0:00:47]}  bxc6 {[%clk 0:01:05]} 27. Nf3 {[%clk 0:00:46]}  Re6 {[%clk 0:00:44]} 28. Nxg5 {[%clk 0:00:46]}  Ree8 {[%clk 0:00:44]} 29. Rc5 {[%clk 0:00:44]}  Rab8 {[%clk 0:00:42]} 30. Nf3 {[%clk 0:00:40]}  Kf7 {[%clk 0:00:39]} 31. Nd2 {[%clk 0:00:40]}  Ke6 {[%clk 0:00:37]} 32. Ra1 {[%clk 0:00:40]}  Kd6 {[%clk 0:00:38]} 33. Rac1 {[%clk 0:00:40]}  Rb7 {[%clk 0:00:34]} 34. Kf1 {[%clk 0:00:35]}  Reb8 {[%clk 0:00:34]} 35. Ke2 {[%clk 0:00:34]}  Rb6 {[%clk 0:00:30]} 36. f4 {[%clk 0:00:32]}  exf4 {[%clk 0:00:22]} 37. exf4 {[%clk 0:00:32]}  Re8+ {[%clk 0:00:22]} 38. Kd3 {[%clk 0:00:32]}  Bc8 {[%clk 0:00:23]} 39. R5c2 {[%clk 0:00:27]}  Ba6+ {[%clk 0:00:23]} 40. Kd4 {[%clk 0:00:25]}  c5+ {[%clk 0:00:15]} 41. Kc3 {[%clk 0:00:25]}  d4+ {[%clk 0:00:14]} 42. Kb2 {[%clk 0:00:26]}  Rc6 {[%clk 0:00:14]} 43. Nc4+ {[%clk 0:00:25]}  Bxc4 {[%clk 0:00:14]} 44. Rxc4 {[%clk 0:00:25]}  Kd5 {[%clk 0:00:14]} 45. R4c2 {[%clk 0:00:24]}  Re3 {[%clk 0:00:12]} 46. Rd2 {[%clk 0:00:24]}  Ke4 {[%clk 0:00:12]} 47. Rcd1 {[%clk 0:00:23]}  Rb6 {[%clk 0:00:11]} 48. Kc2 {[%clk 0:00:23]}  Rbxb3 {[%clk 0:00:11]} 49. Rf2 {[%clk 0:00:20]}  Rec3+ {[%clk 0:00:11]} 50. Kd2 {[%clk 0:00:20]}  Rb2+ {[%clk 0:00:12]} 51. Ke1 {[%clk 0:00:20]}  Re3+ {[%clk 0:00:12]} 52. Kf1 {[%clk 0:00:21]}  Rxf2+ {[%clk 0:00:13]} 53. Kxf2 {[%clk 0:00:21]}  c4 {[%clk 0:00:14]} 54. Kf1 {[%clk 0:00:21]}  c3 {[%clk 0:00:14]} 55. Kf2 {[%clk 0:00:21]}  c2 {[%clk 0:00:14]} 56. Rc1 {[%clk 0:00:22]}  d3 {[%clk 0:00:14]} 57. a5 {[%clk 0:00:21]}  Re2+ {[%clk 0:00:14]} 0-1


[Site "https://www.chess.com"]

[Event "Titled Tuesday Blitz February 28 Late 2023"]
[White "Fajdetic, Hrvoje"]
[Black "Yang, Qindong"]
[WhiteFideId "14501945"]
[BlackFideId "8603758"]
[WhiteElo "2185"]
[BlackElo "2090"]
[Result "0-1"]
[Round "08"]
[TimeControl "180+2"]
[Date "2023.02.28"]
[WhiteClock "0:00:01"]
[BlackClock "0:00:34"]

1. d4 {[%clk 0:02:56]}  Nf6 {[%clk 0:02:59]} 2. Bf4 {[%clk 0:02:56]}  d5 {[%clk 0:02:58]} 3. e3 {[%clk 0:02:56]}  c5 {[%clk 0:02:57]} 4. Nc3 {[%clk 0:02:55]}  cxd4 {[%clk 0:02:55]} 5. exd4 {[%clk 0:02:55]}  a6 {[%clk 0:02:55]} 6. Bd3 {[%clk 0:02:54]}  Nc6 {[%clk 0:02:52]} 7. Nce2 {[%clk 0:02:54]}  Bg4 {[%clk 0:02:47]} 8. c3 {[%clk 0:02:51]}  e6 {[%clk 0:02:47]} 9. h3 {[%clk 0:02:25]}  Bh5 {[%clk 0:02:45]} 10. g4 {[%clk 0:02:04]}  Bg6 {[%clk 0:02:43]} 11. Nf3 {[%clk 0:02:03]}  Bxd3 {[%clk 0:02:24]} 12. Qxd3 {[%clk 0:02:04]}  Bd6 {[%clk 0:02:17]} 13. Ne5 {[%clk 0:02:01]}  Qc7 {[%clk 0:02:07]} 14. Qg3 {[%clk 0:01:57]}  Ne4 {[%clk 0:02:05]} 15. Qh2 {[%clk 0:01:55]}  h5 {[%clk 0:02:04]} 16. f3 {[%clk 0:01:52]}  Nf6 {[%clk 0:01:48]} 17. Nxc6 {[%clk 0:01:25]}  Bxf4 {[%clk 0:01:47]} 18. Qxf4 {[%clk 0:01:26]}  Qxf4 {[%clk 0:01:43]} 19. Nxf4 {[%clk 0:01:27]}  bxc6 {[%clk 0:01:42]} 20. g5 {[%clk 0:01:27]}  Nd7 {[%clk 0:01:43]} 21. g6 {[%clk 0:01:26]}  e5 {[%clk 0:01:41]} 22. gxf7+ {[%clk 0:01:23]}  Kxf7 {[%clk 0:01:41]} 23. dxe5 {[%clk 0:01:18]}  Nxe5 {[%clk 0:01:41]} 24. Kf2 {[%clk 0:01:18]}  g5 {[%clk 0:01:37]} 25. Ng2 {[%clk 0:01:16]}  Nd3+ {[%clk 0:01:34]} 26. Ke3 {[%clk 0:01:15]}  Nxb2 {[%clk 0:01:34]} 27. h4 {[%clk 0:01:07]}  Nc4+ {[%clk 0:01:31]} 28. Kd4 {[%clk 0:01:07]}  Rhg8 {[%clk 0:01:21]} 29. hxg5 {[%clk 0:01:05]}  Rxg5 {[%clk 0:01:20]} 30. Nf4 {[%clk 0:01:05]}  Rh8 {[%clk 0:01:07]} 31. Rab1 {[%clk 0:01:00]}  Rf5 {[%clk 0:01:04]} 32. Rb7+ {[%clk 0:00:51]}  Kf6 {[%clk 0:01:04]} 33. Nd3 {[%clk 0:00:20]}  Rxf3 {[%clk 0:00:51]} 34. Rc7 {[%clk 0:00:10]}  Na5 {[%clk 0:00:51]} 35. Nc5 {[%clk 0:00:04]}  Rg8 {[%clk 0:00:44]} 36. Rh4 {[%clk 0:00:01]}  Rg4+ {[%clk 0:00:34]} 0-1


[Site "https://www.chess.com"]

[Event "Titled Tuesday Blitz February 28 Late 2023"]
[White "Yurovskykh, Oleksandr"]
[Black "Sreyas Payyappat"]
[WhiteFideId "14134020"]
[BlackFideId "46674969"]
[WhiteElo "2268"]
[BlackElo "2083"]
[Result "1-0"]
[Round "08"]
[TimeControl "180+2"]
[Date "2023.02.28"]
[WhiteClock "0:01:18"]
[BlackClock "0:00:31"]

1. d4 {[%clk 0:03:00]}  Nf6 {[%clk 0:02:59]} 2. Nf3 {[%clk 0:03:01]}  c5 {[%clk 0:02:57]} 3. dxc5 {[%clk 0:02:59]}  Nc6 {[%clk 0:02:56]} 4. a3 {[%clk 0:02:46]}  a5 {[%clk 0:02:54]} 5. c4 {[%clk 0:02:43]}  e6 {[%clk 0:02:53]} 6. Nc3 {[%clk 0:02:43]}  Bxc5 {[%clk 0:02:53]} 7. e3 {[%clk 0:02:44]}  O-O {[%clk 0:02:42]} 8. Be2 {[%clk 0:02:44]}  b6 {[%clk 0:02:41]} 9. O-O {[%clk 0:02:43]}  Bb7 {[%clk 0:02:41]} 10. b3 {[%clk 0:02:42]}  e5 {[%clk 0:02:38]} 11. Bb2 {[%clk 0:02:36]}  d6 {[%clk 0:02:33]} 12. Qd2 {[%clk 0:02:32]}  e4 {[%clk 0:02:27]} 13. Nd4 {[%clk 0:02:14]}  Ne5 {[%clk 0:02:23]} 14. Nf5 {[%clk 0:02:14]}  Qd7 {[%clk 0:02:19]} 15. Ng3 {[%clk 0:02:12]}  Rfe8 {[%clk 0:02:17]} 16. Rfd1 {[%clk 0:02:12]}  Qe6 {[%clk 0:02:15]} 17. Nb5 {[%clk 0:02:07]}  Qd7 {[%clk 0:02:02]} 18. b4 {[%clk 0:02:04]}  axb4 {[%clk 0:01:58]} 19. axb4 {[%clk 0:02:05]}  Rxa1 {[%clk 0:01:38]} 20. Rxa1 {[%clk 0:02:03]}  Nf3+ {[%clk 0:01:38]} 21. gxf3 {[%clk 0:02:03]}  exf3 {[%clk 0:01:39]} 22. Bf1 {[%clk 0:01:56]}  Ne4 {[%clk 0:01:14]} 23. Nxe4 {[%clk 0:01:43]}  Rxe4 {[%clk 0:01:15]} 24. bxc5 {[%clk 0:01:43]}  Qg4+ {[%clk 0:00:39]} 25. Kh1 {[%clk 0:01:43]}  Re6 {[%clk 0:00:40]} 26. Qd4 {[%clk 0:01:24]}  Be4 {[%clk 0:00:31]} 27. Ra8+ {[%clk 0:01:18]} 1-0


[Site "https://www.chess.com"]

[Event "Titled Tuesday Blitz February 28 Late 2023"]
[White "Martic, Ivan"]
[Black "Hajiyev, Kanan"]
[WhiteFideId "929301"]
[BlackFideId "13404148"]
[WhiteElo "2360"]
[BlackElo "2103"]
[Result "0-1"]
[Round "08"]
[TimeControl "180+2"]
[Date "2023.02.28"]
[WhiteClock "0:02:07"]
[BlackClock "0:02:05"]

1. d4 {[%clk 0:03:00]}  d5 {[%clk 0:02:55]} 2. c4 {[%clk 0:02:59]}  c6 {[%clk 0:02:54]} 3. Nc3 {[%clk 0:02:58]}  Nf6 {[%clk 0:02:54]} 4. e3 {[%clk 0:02:58]}  Bf5 {[%clk 0:02:53]} 5. cxd5 {[%clk 0:02:56]}  cxd5 {[%clk 0:02:54]} 6. Qb3 {[%clk 0:02:56]}  b6 {[%clk 0:02:48]} 7. Nf3 {[%clk 0:02:51]}  a6 {[%clk 0:02:43]} 8. Ne5 {[%clk 0:02:50]}  Nbd7 {[%clk 0:02:24]} 9. Nxd7 {[%clk 0:02:46]}  Qxd7 {[%clk 0:02:22]} 10. Qxb6 {[%clk 0:02:44]}  e6 {[%clk 0:02:23]} 11. Bd2 {[%clk 0:02:31]}  Bd6 {[%clk 0:02:13]} 12. Bxa6 {[%clk 0:02:28]}  O-O {[%clk 0:02:10]} 13. Bb5 {[%clk 0:02:26]}  Qe7 {[%clk 0:02:10]} 14. Ba6 {[%clk 0:02:07]}  Rfb8 {[%clk 0:02:05]} 15. Qb5 {[%clk 0:02:07]}  Rxb5 {[%clk 0:02:05]} 0-1


[Site "https://www.chess.com"]

[Event "Titled Tuesday Blitz February 28 Late 2023"]
[White "ArchibaldCerveza29"]
[Black "Bouget, Alexandre"]
[BlackFideId "681318"]
[WhiteElo "2501"]
[BlackElo "2177"]
[Result "0-1"]
[Round "08"]
[TimeControl "180+2"]
[Date "2023.02.28"]
[WhiteClock "0:00:16"]
[BlackClock "0:00:14"]

1. e4 {[%clk 0:03:00]}  d5 {[%clk 0:02:56]} 2. exd5 {[%clk 0:03:00]}  Qxd5 {[%clk 0:02:56]} 3. Nc3 {[%clk 0:03:00]}  Qe6+ {[%clk 0:02:55]} 4. Be2 {[%clk 0:02:59]}  Qg6 {[%clk 0:02:55]} 5. Bf3 {[%clk 0:02:55]}  Nc6 {[%clk 0:02:54]} 6. Nge2 {[%clk 0:02:54]}  Bf5 {[%clk 0:02:41]} 7. d3 {[%clk 0:02:53]}  O-O-O {[%clk 0:02:40]} 8. Ng3 {[%clk 0:02:47]}  Bd7 {[%clk 0:02:34]} 9. d4 {[%clk 0:02:40]}  Nf6 {[%clk 0:02:25]} 10. O-O {[%clk 0:02:38]}  h5 {[%clk 0:02:24]} 11. h4 {[%clk 0:02:33]}  Bg4 {[%clk 0:02:18]} 12. Be3 {[%clk 0:02:32]}  e5 {[%clk 0:02:17]} 13. d5 {[%clk 0:02:30]}  Kb8 {[%clk 0:01:49]} 14. Bg5 {[%clk 0:02:03]}  Be7 {[%clk 0:01:44]} 15. Bxf6 {[%clk 0:01:49]}  gxf6 {[%clk 0:01:42]} 16. Qe2 {[%clk 0:01:42]}  Nd4 {[%clk 0:01:40]} 17. Qd3 {[%clk 0:01:35]}  Bxf3 {[%clk 0:01:33]} 18. gxf3 {[%clk 0:01:35]}  Qxd3 {[%clk 0:01:30]} 19. cxd3 {[%clk 0:01:36]}  Nxf3+ {[%clk 0:01:28]} 20. Kh1 {[%clk 0:01:30]}  Nxh4 {[%clk 0:01:29]} 21. f4 {[%clk 0:01:22]}  Rdg8 {[%clk 0:01:23]} 22. Nge4 {[%clk 0:01:17]}  f5 {[%clk 0:00:59]} 23. Nd2 {[%clk 0:01:15]}  Rg3 {[%clk 0:00:51]} 24. fxe5 {[%clk 0:01:09]}  Rhg8 {[%clk 0:00:50]} 25. Rf2 {[%clk 0:01:06]}  Bc5 {[%clk 0:00:40]} 26. Re2 {[%clk 0:01:06]}  Bg1 {[%clk 0:00:28]} 27. Rxg1 {[%clk 0:00:18]}  Rxg1+ {[%clk 0:00:29]} 28. Kh2 {[%clk 0:00:19]}  R1g2+ {[%clk 0:00:28]} 29. Kh3 {[%clk 0:00:17]}  Rxe2 {[%clk 0:00:28]} 30. Nxe2 {[%clk 0:00:18]}  Ng6 {[%clk 0:00:27]} 31. d4 {[%clk 0:00:17]}  Rd8 {[%clk 0:00:25]} 32. Nc3 {[%clk 0:00:15]}  Nf4+ {[%clk 0:00:24]} 33. Kh4 {[%clk 0:00:16]}  Nxd5 {[%clk 0:00:25]} 34. Kxh5 {[%clk 0:00:17]}  Nf4+ {[%clk 0:00:22]} 35. Kg5 {[%clk 0:00:17]}  Ne6+ {[%clk 0:00:23]} 36. Kf6 {[%clk 0:00:18]}  Rxd4 {[%clk 0:00:22]} 37. Nb3 {[%clk 0:00:18]}  Rd7 {[%clk 0:00:17]} 38. Kxf5 {[%clk 0:00:18]}  Nd4+ {[%clk 0:00:16]} 39. Nxd4 {[%clk 0:00:19]}  Rxd4 {[%clk 0:00:16]} 40. Kf6 {[%clk 0:00:20]}  Rf4+ {[%clk 0:00:16]} 41. Ke7 {[%clk 0:00:20]}  Rf2 {[%clk 0:00:16]} 42. Ne4 {[%clk 0:00:20]}  Re2 {[%clk 0:00:16]} 43. Nf6 {[%clk 0:00:16]}  Rxe5+ {[%clk 0:00:16]} 44. Kxf7 {[%clk 0:00:16]}  Re2 {[%clk 0:00:16]} 45. b4 {[%clk 0:00:14]}  Rxa2 {[%clk 0:00:15]} 46. Ke6 {[%clk 0:00:15]}  Ra6+ {[%clk 0:00:14]} 47. Kd5 {[%clk 0:00:15]}  Rxf6 {[%clk 0:00:14]} 48. b5 {[%clk 0:00:16]}  Rd6+ {[%clk 0:00:14]} 0-1


[Site "https://www.chess.com"]

[Event "Titled Tuesday Blitz February 28 Late 2023"]
[White "Vaglio Munoz, Jaime"]
[Black "Toncheva, Nadya"]
[WhiteFideId "6500145"]
[BlackFideId "2924056"]
[WhiteElo "2199"]
[BlackElo "2101"]
[Result "0-1"]
[Round "08"]
[TimeControl "180+2"]
[Date "2023.02.28"]
[WhiteClock "0:00:43"]
[BlackClock "0:01:29"]

1. Nf3 {[%clk 0:02:59]}  c5 {[%clk 0:03:00]} 2. b3 {[%clk 0:02:59]}  d6 {[%clk 0:02:59]} 3. Bb2 {[%clk 0:02:59]}  Nc6 {[%clk 0:02:59]} 4. g3 {[%clk 0:02:59]}  e5 {[%clk 0:02:59]} 5. Bg2 {[%clk 0:02:59]}  g6 {[%clk 0:03:00]} 6. O-O {[%clk 0:02:58]}  Bg7 {[%clk 0:03:00]} 7. c4 {[%clk 0:02:57]}  Nge7 {[%clk 0:03:01]} 8. d3 {[%clk 0:02:57]}  O-O {[%clk 0:03:01]} 9. Nc3 {[%clk 0:02:56]}  f5 {[%clk 0:03:02]} 10. Nd5 {[%clk 0:02:55]}  h6 {[%clk 0:02:56]} 11. e3 {[%clk 0:02:54]}  Be6 {[%clk 0:02:56]} 12. Nxe7+ {[%clk 0:02:50]}  Qxe7 {[%clk 0:02:55]} 13. d4 {[%clk 0:02:51]}  e4 {[%clk 0:02:46]} 14. Ne1 {[%clk 0:02:37]}  cxd4 {[%clk 0:02:38]} 15. exd4 {[%clk 0:02:37]}  d5 {[%clk 0:02:38]} 16. a4 {[%clk 0:02:34]}  Rfd8 {[%clk 0:02:34]} 17. c5 {[%clk 0:02:29]}  f4 {[%clk 0:02:20]} 18. gxf4 {[%clk 0:02:15]}  Rf8 {[%clk 0:02:13]} 19. Nc2 {[%clk 0:02:11]}  Rxf4 {[%clk 0:02:10]} 20. Ne3 {[%clk 0:02:08]}  Raf8 {[%clk 0:02:08]} 21. b4 {[%clk 0:01:43]}  Qg5 {[%clk 0:02:05]} 22. b5 {[%clk 0:01:42]}  Bh3 {[%clk 0:02:00]} 23. bxc6 {[%clk 0:01:33]}  Rf3 {[%clk 0:01:31]} 24. Kh1 {[%clk 0:01:16]}  Rxe3 {[%clk 0:01:30]} 25. Bxh3 {[%clk 0:01:11]}  Rxh3 {[%clk 0:01:31]} 26. Rg1 {[%clk 0:00:44]}  Rxh2+ {[%clk 0:01:27]} 27. Kxh2 {[%clk 0:00:43]}  Qh4+ {[%clk 0:01:28]} 28. Kg2 {[%clk 0:00:43]}  Rxf2# {[%clk 0:01:29]} 0-1


[Site "https://www.chess.com"]